bitfinex-derivatives/quotes_BNBF0:USTF0_20250220
["timestamp","ask_amount","ask_price","bid_price","bid_amount"]
[1740092625547,2.15359082,656.03,655.4,0.30515715]
[1740092625751,2.9200343,656.02,655.4,0.30515715]
[1740092626053,2.9200343,656.01,655.4,0.30515715]
[1740092626252,2.9200343,656.0,655.4,0.30515715]
[1740092626453,2.9200343,655.99,655.4,0.30515715]
[1740092626654,2.9200343,655.98,655.4,0.30515715]
[1740092626952,2.9200343,655.97,655.4,0.30515715]
[1740092627150,2.9200343,655.96,655.4,0.30515715]
[1740092627351,2.9200343,655.95,655.4,0.30515715]
[1740092627552,2.9200343,655.94,655.4,0.30515715]
[1740092627753,2.9200343,655.93,655.4,0.30515715]
[1740092627948,2.9200343,655.92,655.4,0.30515715]
[1740092628157,2.9200343,655.91,655.4,0.30515715]
[1740092628356,2.9200343,655.9,655.4,0.30515715]
[1740092628556,2.9200343,655.89,655.4,0.30515715]
[1740092628856,2.9200343,655.88,655.4,0.30515715]
[1740092629054,2.9200343,655.87,655.4,0.30515715]
[1740092629254,2.9200343,655.86,655.4,0.30515715]
[1740092629453,2.15359082,655.92,655.4,0.30515715]
[1740092629755,2.92068801,655.91,655.4,0.30515715]
[1740092630057,2.92068801,655.9,655.4,0.30515715]
[1740092630356,2.15359082,655.9,655.4,0.30515715]
[1740092631452,1.488,656.09,655.4,0.30515715]
[1740092641566,2.91113762,656.08,655.4,0.30515715]
[1740092641763,1.488,656.09,655.4,0.30515715]
[1740092642166,2.91114431,656.08,655.4,0.30515715]
[1740092642466,1.488,656.09,655.4,0.30515715]
[1740092646062,2.14693512,656.08,655.4,0.30515715]
[1740092647659,1.488,656.09,655.4,0.30515715]
[1740092648663,2.14728094,656.08,655.4,0.30515715]
[1740092650062,2.14728094,656.07,655.4,0.30515715]
[1740092651468,2.14728094,656.06,655.4,0.30515715]
[1740092653667,2.14728094,656.05,655.4,0.30515715]
[1740092655565,5.05824863,656.04,655.4,0.30515715]
[1740092655869,2.91096769,656.03,655.4,0.30515715]
[1740092656070,2.91096769,656.02,655.4,0.30515715]
[1740092656266,2.91096769,656.01,655.4,0.30515715]
[1740092656463,2.91096769,656.0,655.4,0.30515715]
[1740092656770,2.91096769,655.99,655.4,0.30515715]
[1740092656970,2.91096769,655.98,655.4,0.30515715]
[1740092657168,2.14728094,655.98,655.4,0.30515715]
[1740092658865,1.394,656.26,655.4,0.30515715]
[1740092659070,2.91154903,656.25,655.4,0.30515715]
[1740092659271,2.91154903,656.24,655.4,0.30515715]
[1740092659569,2.91154903,656.23,655.4,0.30515715]
[1740092659769,2.91154903,656.22,655.4,0.30515715]
[1740092659969,2.91154903,656.21,655.4,0.30515715]
[1740092660170,2.91154903,656.2,655.4,0.30515715]
[1740092660369,2.91154903,656.19,655.4,0.30515715]
[1740092660670,2.91154903,656.18,655.4,0.30515715]
[1740092660968,2.91154903,656.17,655.4,0.30515715]
[1740092661164,2.91154903,656.16,655.4,0.30515715]
[1740092661365,2.91154903,656.15,655.4,0.30515715]
[1740092661567,2.91154903,656.14,655.4,0.30515715]
[1740092661871,2.91154903,656.13,655.4,0.30515715]
[1740092662070,2.91154903,656.12,655.4,0.30515715]
[1740092662270,2.91154903,656.11,655.4,0.30515715]
[1740092662471,2.91154903,656.1,655.4,0.30515715]
[1740092662766,2.91154903,656.09,655.4,0.30515715]
[1740092662970,2.91154903,656.08,655.4,0.30515715]
[1740092663167,2.91154903,656.07,655.4,0.30515715]
[1740092663368,2.91154903,656.06,655.4,0.30515715]
[1740092663567,2.14779485,656.07,655.4,0.30515715]
[1740092663771,2.91207697,656.06,655.4,0.30515715]
[1740092663967,2.14779485,656.07,655.4,0.30515715]
[1740092664865,2.14779485,656.06,655.4,0.30515715]
[1740092667073,2.032,656.18,655.4,0.30515715]
[1740092667275,2.14847819,656.17,655.4,0.30515715]
[1740092668275,2.14847819,656.16,655.4,0.30515715]
[1740092669275,2.14847819,656.15,655.4,0.30515715]
[1740092671078,2.14847819,656.14,655.4,0.30515715]
[1740092672974,2.032,656.18,655.4,0.30515715]
[1740092674283,1.626,656.23,655.4,0.30515715]
[1740092676082,2.91307196,656.22,655.5,1.13152148]
[1740092676281,1.626,656.23,655.51,0.30510594]
[1740092676484,2.91319652,656.22,655.51,0.30510594]
[1740092676783,2.91319652,656.21,655.51,0.30510594]
[1740092676983,2.1487787,656.22,655.51,0.30510594]
[1740092677977,1.626,656.23,655.51,0.30510594]
[1740092678181,2.9131959,656.22,655.51,0.30510594]
[1740092678382,1.626,656.23,655.51,0.30510594]
[1740092678582,2.9132553,656.22,655.51,0.30510594]
[1740092678780,1.626,656.23,655.51,0.30510594]
[1740092679085,2.9132428,656.22,655.51,0.30510594]
[1740092679284,1.626,656.23,655.51,0.30510594]
[1740092680084,2.91327141,656.22,655.51,0.30510594]
[1740092680384,1.626,656.23,655.51,0.30510594]
[1740092683480,1.626,656.23,655.51,1.43662742]
[1740092686589,1.626,656.23,655.52,1.13152148]
[1740092686888,1.626,656.23,655.53,0.30509663]
[1740092692089,0.657,656.51,655.53,0.30509663]
[1740092692290,2.91369462,656.5,655.53,0.30509663]
[1740092692484,2.91369462,656.49,655.53,0.30509663]
[1740092692683,2.91369462,656.48,655.53,0.30509663]
[1740092692890,2.91369462,656.47,655.53,0.30509663]
[1740092693190,2.91369462,656.46,655.53,0.30509663]
[1740092693490,2.91369462,656.45,655.53,0.30509663]
[1740092693685,2.91369462,656.44,655.53,0.30509663]
[1740092693890,2.91369462,656.43,655.53,0.30509663]
[1740092694190,2.91369462,656.42,655.53,0.30509663]
[1740092694391,2.91369462,656.41,655.46,1.58993649]
[1740092694690,5.06269641,656.4,655.46,1.58993649]
[1740092694990,2.91369462,656.39,655.46,1.58993649]
[1740092695191,2.91369462,656.38,655.46,1.58993649]
[1740092695393,2.14900179,656.4,655.46,1.58993649]
[1740092695691,2.91293282,656.39,655.46,1.58993649]
[1740092695891,2.91293282,656.38,655.46,1.58993649]
[1740092696091,2.91292379,656.37,655.46,1.58993649]
[1740092696295,2.91292379,656.36,655.46,1.58993649]
[1740092696485,2.91292379,656.35,655.46,1.58993649]
[1740092696689,2.91292379,656.34,655.46,1.58993649]
[1740092696886,2.91292379,656.33,655.46,1.58993649]
[1740092697090,2.91292379,656.32,655.46,1.58993649]
[1740092697293,2.91292379,656.31,655.46,1.58993649]
[1740092697490,2.14900179,656.37,655.46,1.58993649]
[1740092697695,2.91257099,656.36,655.46,1.58993649]
[1740092697893,2.91257099,656.35,655.46,1.58993649]
[1740092698093,2.91257099,656.34,655.46,1.58993649]
[1740092698292,2.91257099,656.33,655.46,1.58993649]
[1740092698493,2.91257099,656.32,655.46,1.58993649]
[1740092698794,2.91257099,656.31,655.46,1.58993649]
[1740092698994,2.14900179,656.35,655.46,1.58993649]
[1740092699189,2.91242595,656.34,655.46,1.58993649]
[1740092699388,2.91242595,656.33,655.46,1.58993649]
[1740092699591,2.91242595,656.32,655.46,1.58993649]
[1740092699894,2.91242595,656.31,655.46,1.58993649]
[1740092700094,2.14900179,656.35,655.46,1.58993649]
[1740092700298,2.91224755,656.34,655.46,1.58993649]
[1740092700597,5.06124934,656.33,655.55,1.13152148]
[1740092700795,2.91224755,656.32,655.55,1.13152148]
[1740092700995,2.14900179,656.33,655.55,1.13152148]
[1740092701195,2.91219984,656.32,655.55,1.13152148]
[1740092701395,2.14900179,656.33,655.55,1.13152148]
[1740092702194,2.91196562,656.32,655.55,1.13152148]
[1740092702395,2.91196562,656.31,655.55,1.13152148]
[1740092702598,2.14900179,656.31,655.55,1.13152148]
[1740092703494,2.14900179,656.31,655.65,1.13152148]
[1740092703993,2.14900179,656.3,655.65,1.13152148]
[1740092705594,0.657,656.51,655.65,1.13152148]
[1740092705901,0.657,656.51,655.57,1.13152148]
[1740092706400,1.903,656.56,655.57,1.13152148]
[1740092706595,2.14667586,656.5,655.57,1.13152148]
[1740092708300,2.14667586,656.5,655.5,1.58986386]
[1740092708301,2.14667586,656.5,655.66,1.13152148]
[1740092708493,2.14667586,656.49,655.66,1.13152148]
[1740092709903,2.14667586,656.48,655.66,1.13152148]
[1740092710898,2.14667586,656.48,655.5,1.58986386]
[1740092710899,2.14667586,656.48,655.67,1.13152148]
[1740092711805,2.14667586,656.47,655.67,1.13152148]
[1740092713604,3.509,656.61,655.67,1.13152148]
[1740092713806,2.90872983,656.6,655.71,1.13152148]
[1740092714107,2.90872983,656.59,655.71,1.13152148]
[1740092714308,2.90872983,656.58,655.71,1.13152148]
[1740092714508,2.90872983,656.57,655.71,1.13152148]
[1740092714808,2.90872983,656.56,655.71,1.13152148]
[1740092715108,2.90872983,656.55,655.71,1.13152148]
[1740092715309,2.90872983,656.54,655.71,1.13152148]
[1740092715509,2.90872983,656.53,655.71,1.13152148]
[1740092715710,2.90872983,656.52,655.71,1.13152148]
[1740092715909,2.14514137,656.59,655.57,1.58953102]
[1740092715910,2.14514137,656.59,655.81,1.13152148]
[1740092716107,2.90802761,656.58,655.81,1.13152148]
[1740092716309,2.90802761,656.57,655.81,1.13152148]
[1740092716610,2.90802761,656.56,655.81,1.13152148]
[1740092716802,2.90802761,656.55,655.81,1.13152148]
[1740092717006,2.90802761,656.54,655.81,1.13152148]
[1740092717206,2.90802761,656.53,655.81,1.13152148]
[1740092717405,2.14514137,656.57,655.81,1.13152148]
[1740092717611,2.90783267,656.56,655.81,1.13152148]
[1740092717808,2.9077438,656.55,655.81,1.13152148]
[1740092718005,2.14514137,656.57,655.79,1.13152148]
[1740092718203,2.90778896,656.56,655.79,1.13152148]
[1740092718408,2.14514137,656.56,655.79,1.13152148]
[1740092720613,1.809,656.63,655.79,1.13152148]
[1740092721011,2.14388555,656.62,655.79,1.13152148]
[1740092722513,1.809,656.63,655.79,1.13152148]
[1740092723214,1.809,656.63,655.78,1.13152148]
[1740092725314,1.809,656.63,655.7,1.13152148]
[1740092725515,1.809,656.63,655.72,0.30500823]
[1740092729411,2.14369249,656.62,655.72,0.30500823]
[1740092730716,1.809,656.63,655.72,0.30500823]
[1740092732822,2.14487762,656.62,655.72,0.30500823]
[1740092734924,2.14487762,656.61,655.72,0.30500823]
[1740092737025,2.14487762,656.6,655.72,0.30500823]
[1740092738524,2.14487762,656.59,655.72,0.30500823]
[1740092739820,2.14487762,656.58,655.72,0.30500823]
[1740092741624,2.91178881,656.57,655.72,0.30500823]
[1740092741920,2.91178881,656.56,655.72,0.30500823]
[1740092742227,5.05666643,656.55,655.72,0.30500823]
[1740092742522,2.91178881,656.54,655.72,0.30500823]
[1740092742726,2.91178881,656.53,655.72,0.30500823]
[1740092742921,2.91178881,656.52,655.72,0.30500823]
[1740092743124,2.14487762,656.55,655.72,0.30500823]
[1740092743322,2.91239711,656.54,655.72,0.30500823]
[1740092743527,5.05727473,656.53,655.72,0.30500823]
[1740092743726,2.91239711,656.52,655.72,0.30500823]
[1740092743923,2.91239711,656.51,655.72,0.30500823]
[1740092744121,2.91239711,656.5,655.72,0.30500823]
[1740092744323,2.91199353,656.49,655.72,0.30500823]
[1740092744521,2.91199353,656.48,655.72,0.30500823]
[1740092744724,2.91199353,656.47,655.72,0.30500823]
[1740092744927,2.91199353,656.46,655.72,0.30500823]
[1740092745123,2.91199353,656.45,655.72,0.30500823]
[1740092745321,2.14487762,656.46,655.72,0.30500823]
[1740092745521,2.91143367,656.45,655.72,0.30500823]
[1740092745723,2.14487762,656.46,655.72,0.30500823]
[1740092746127,2.91139201,656.45,655.72,0.30500823]
[1740092746324,2.91139201,656.44,655.72,0.30500823]
[1740092746528,2.91089205,656.43,655.72,0.30500823]
[1740092746723,2.91089205,656.42,655.72,0.30500823]
[1740092747024,2.14487762,656.46,655.72,0.30500823]
[1740092747226,2.14487762,656.41,655.72,0.30500823]
[1740092748726,2.91000245,656.4,655.72,0.30500823]
[1740092749031,5.05488007,656.39,655.72,0.30500823]
[1740092749230,2.91000245,656.38,655.72,0.30500823]
[1740092749430,2.14487762,656.39,655.72,0.30500823]
[1740092749629,2.90936188,656.38,655.72,0.30500823]
[1740092749826,2.14487762,656.39,655.72,0.30500823]
[1740092750325,2.9087382,656.38,655.72,0.30500823]
[1740092750530,2.9087382,656.37,655.72,0.30500823]
[1740092750730,2.14487762,656.37,655.72,0.30500823]
[1740092750931,2.90875444,656.36,655.72,0.30500823]
[1740092751125,2.14487762,656.37,655.72,0.30500823]
[1740092751325,2.90812591,656.36,655.72,0.30500823]
[1740092751528,2.90812591,656.35,655.72,0.30500823]
[1740092751731,2.90812591,656.34,655.72,0.30500823]
[1740092751930,2.90812591,656.33,655.72,0.30500823]
[1740092752131,2.90812591,656.32,655.72,0.30500823]
[1740092752331,2.90812591,656.31,655.72,0.30500823]
[1740092752633,2.90812591,656.3,655.72,0.30500823]
[1740092752932,2.90812591,656.29,655.72,0.30500823]
[1740092753131,2.90812591,656.28,655.72,0.30500823]
[1740092753331,2.90812591,656.27,655.72,0.30500823]
[1740092753627,5.05300353,656.26,655.72,0.30500823]
[1740092753826,2.90812591,656.25,655.72,0.30500823]
[1740092754027,2.90812591,656.24,655.72,0.30500823]
[1740092754226,2.90812591,656.23,655.72,0.30500823]
[1740092754430,2.90812591,656.22,655.72,0.30500823]
[1740092754631,2.90812591,656.21,655.72,0.30500823]
[1740092754831,5.05300353,656.2,655.72,0.30500823]
[1740092755030,2.90812591,656.19,655.72,0.30500823]
[1740092755231,2.90812591,656.18,655.72,0.30500823]
[1740092755533,2.90812591,656.17,655.72,0.30500823]
[1740092755727,2.90478621,656.16,655.72,0.30500823]
[1740092755928,2.90478621,656.15,655.72,0.30500823]
[1740092756134,2.90478621,656.14,655.72,0.30500823]
[1740092756333,2.90478621,656.13,655.72,0.30500823]
[1740092756533,2.90478621,656.12,655.72,0.30500823]
[1740092756731,2.90478621,656.11,655.68,1.58924671]
[1740092756931,2.90478621,656.1,655.68,1.58924671]
[1740092757130,2.90478621,656.09,655.68,1.58924671]
[1740092757335,2.90478621,656.08,655.68,1.58924671]
[1740092757536,2.90478621,656.07,655.68,1.58924671]
[1740092757734,2.90478621,656.06,655.68,1.58924671]
[1740092757935,2.90478621,656.05,655.68,1.58924671]
[1740092758132,2.90478621,656.04,655.68,1.58924671]
[1740092758334,2.14487762,656.04,655.68,1.58924671]
[1740092760035,2.14487762,656.03,655.68,1.58924671]
[1740092761937,4.767,656.35,655.68,1.58924671]
[1740092762135,5.425,656.35,655.68,1.58924671]
[1740092762342,7.728,656.35,655.68,1.58924671]
[1740092762642,2.13624002,656.34,655.68,1.58924671]
[1740092763440,2.8946477,656.33,655.68,1.58924671]
[1740092763637,2.8946477,656.32,655.68,1.58924671]
[1740092763844,2.13624002,656.34,655.68,1.58924671]
[1740092764041,5.03046008,656.33,655.68,1.58924671]
[1740092764239,2.13624002,656.33,655.69,0.30502219]
[1740092766447,2.13624002,656.32,655.69,0.30502219]
[1740092767344,2.89249965,656.31,655.69,0.30502219]
[1740092767541,2.89249965,656.3,655.69,0.30502219]
[1740092767748,2.89249965,656.29,655.69,0.30502219]
[1740092767946,2.89249965,656.28,655.69,0.30502219]
[1740092768247,2.89249965,656.27,655.69,0.30502219]
[1740092768443,2.89249965,656.26,655.69,0.30502219]
[1740092768648,2.89249965,656.25,655.69,0.30502219]
[1740092768848,2.89249965,656.24,655.69,0.30502219]
[1740092769048,2.13624002,656.28,655.69,0.30502219]
[1740092769350,2.89233996,656.27,655.69,0.30502219]
[1740092769546,2.13624002,656.28,655.69,0.30502219]
[1740092769547,2.89233996,656.26,655.69,0.30502219]
[1740092769748,2.89233996,656.25,655.69,0.30502219]
[1740092769945,2.13624002,656.28,655.69,0.30502219]
[1740092770146,2.89196345,656.27,655.69,0.30502219]
[1740092770347,2.89196345,656.26,655.69,0.30502219]
[1740092770546,2.13624002,656.28,655.69,0.30502219]
[1740092770748,2.13624002,656.26,655.69,0.30502219]
[1740092771150,2.89167618,656.25,655.69,0.30502219]
[1740092771450,2.13624002,656.26,655.69,0.30502219]
[1740092771854,2.89146903,656.25,655.69,0.30502219]
[1740092772049,2.13624002,656.26,655.69,0.30502219]
[1740092772554,5.0275409,656.25,655.69,0.30502219]
[1740092772752,2.89130088,656.24,655.69,0.30502219]
[1740092773051,2.89130088,656.23,655.69,0.30502219]
[1740092773252,2.13624002,656.25,655.69,0.30502219]
[1740092774354,7.728,656.35,655.69,0.30502219]
[1740092776657,2.13270602,656.34,655.69,0.30502219]
[1740092777158,2.89169836,656.33,655.69,0.30502219]
[1740092777359,2.89169836,656.32,655.69,0.30502219]
[1740092777559,2.89169836,656.31,655.69,0.30502219]
[1740092777758,2.89169836,656.3,655.69,0.30502219]
[1740092777958,2.89169836,656.29,655.69,0.30502219]
[1740092778158,2.89169836,656.28,655.69,0.30502219]
[1740092778460,2.13270602,656.34,655.69,0.30502219]
[1740092778461,2.89169836,656.27,655.69,0.30502219]
[1740092778660,2.89169836,656.26,655.69,0.30502219]
[1740092778960,2.89169836,656.25,655.69,0.30502219]
[1740092779259,2.89169836,656.24,655.69,0.30502219]
[1740092779455,2.89169836,656.23,655.69,0.30502219]
[1740092779659,2.89169836,656.22,655.69,0.30502219]
[1740092779859,2.89169836,656.21,655.69,0.30502219]
[1740092780061,2.13270602,656.27,655.69,0.30502219]
[1740092780062,2.89169836,656.2,655.69,0.30502219]
[1740092780261,2.89169836,656.19,655.69,0.30502219]
[1740092780456,2.89169836,656.18,655.69,0.30502219]
[1740092780661,2.89169836,656.17,655.69,0.30502219]
[1740092780857,2.89169836,656.16,655.69,0.30502219]
[1740092781162,2.89169836,656.15,655.69,0.30502219]
[1740092781358,2.89169836,656.14,655.69,0.30502219]
[1740092781556,2.13270602,656.16,655.69,0.30502219]
[1740092781759,2.89317503,656.15,655.69,0.30502219]
[1740092782059,2.89317503,656.14,655.69,0.30502219]
[1740092782259,2.89317503,656.13,655.69,0.30502219]
[1740092782460,2.13270602,656.16,655.69,0.30502219]
[1740092782663,2.89365773,656.15,655.69,0.30502219]
[1740092782863,2.89365773,656.14,655.69,0.30502219]
[1740092783063,2.89365773,656.13,655.69,0.30502219]
[1740092783261,2.13270602,656.15,655.69,0.30502219]
[1740092783458,2.89429528,656.14,655.69,0.30502219]
[1740092783661,2.89429528,656.13,655.69,0.30502219]
[1740092783863,2.13270602,656.15,655.69,0.30502219]
[1740092784064,2.89428,656.14,655.69,0.30502219]
[1740092784366,2.89485255,656.13,655.69,0.30502219]
[1740092784565,2.13270602,656.15,655.69,0.30502219]
[1740092784760,2.8949821,656.14,655.69,0.30502219]
[1740092785063,2.8949821,656.13,655.69,0.30502219]
[1740092785263,2.13270602,656.14,655.69,0.30502219]
[1740092785759,2.89576458,656.13,655.69,0.30502219]
[1740092785965,2.13270602,656.14,655.69,0.30502219]
[1740092786165,2.89577634,656.13,655.69,0.30502219]
[1740092786364,2.89577634,656.12,655.69,0.30502219]
[1740092786665,2.89577634,656.11,655.69,0.30502219]
[1740092786866,2.89577634,656.1,655.69,0.30502219]
[1740092787164,2.89661897,656.09,655.69,0.30502219]
[1740092787364,2.89661897,656.08,655.69,0.30502219]
[1740092787564,2.89661897,656.07,655.69,0.30502219]
[1740092787765,2.89661897,656.06,655.69,0.30502219]
[1740092787959,2.89661897,656.05,655.69,0.30502219]
[1740092788160,2.89661897,656.04,655.69,0.30502219]
[1740092788364,2.89661897,656.03,655.69,0.30502219]
[1740092788565,2.89661897,656.02,655.69,0.30502219]
[1740092788767,2.89661897,656.01,655.69,0.30502219]
[1740092788967,2.13270602,656.03,655.69,0.30502219]
[1740092789167,2.89846524,656.02,655.69,0.30502219]
[1740092789364,2.13270602,656.03,655.69,0.30502219]
[1740092790465,0.658,656.35,655.69,0.30502219]
[1740092790665,2.90072682,656.34,655.69,0.30502219]
[1740092790868,2.90072682,656.33,655.69,0.30502219]
[1740092791069,2.90072682,656.32,655.69,0.30502219]
[1740092791270,2.90072682,656.31,655.69,0.30502219]
[1740092791469,2.90072682,656.3,655.69,0.30502219]
[1740092791667,2.90072682,656.29,655.69,0.30502219]
[1740092791864,2.90072682,656.28,655.69,0.30502219]
[1740092792066,2.90072682,656.27,655.69,0.30502219]
[1740092792270,2.90072682,656.26,655.69,0.30502219]
[1740092792472,5.04050018,656.25,655.69,0.30502219]
[1740092792670,2.90072682,656.24,655.69,0.30502219]
[1740092792867,2.90072682,656.23,655.69,0.30502219]
[1740092793071,2.90072682,656.22,655.69,0.30502219]
[1740092793270,2.90072682,656.21,655.69,0.30502219]
[1740092793467,2.13977336,656.25,655.69,0.30502219]
[1740092793468,2.90072682,656.2,655.69,0.30502219]
[1740092793665,2.90072682,656.19,655.69,0.30502219]
[1740092793868,2.90072682,656.18,655.69,0.30502219]
[1740092794065,2.90072682,656.17,655.69,0.30502219]
[1740092794268,2.90072682,656.16,655.69,0.30502219]
[1740092794568,2.90072682,656.15,655.69,0.30502219]
[1740092794765,2.90072682,656.14,655.69,0.30502219]
[1740092794967,2.90072682,656.13,655.69,0.30502219]
[1740092795171,2.90072682,656.12,655.69,0.30502219]
[1740092795368,2.90072682,656.11,655.69,0.30502219]
[1740092795573,2.90072682,656.1,655.69,0.30502219]
[1740092795771,5.04050018,656.09,655.69,0.30502219]
[1740092795974,2.90072682,656.08,655.69,0.30502219]
[1740092796174,2.90072682,656.07,655.69,0.30502219]
[1740092796371,2.90072682,656.06,655.69,0.30502219]
[1740092796573,2.90072682,656.05,655.69,0.30502219]
[1740092796773,2.90072682,656.04,655.69,0.30502219]
[1740092796974,2.90072682,656.03,655.69,0.30502219]
[1740092797276,2.90072682,656.02,655.69,0.30502219]
[1740092797475,2.13977336,656.09,655.69,0.30502219]
[1740092797875,6.753,656.36,655.69,0.30502219]
[1740092801779,5.039,656.36,655.69,0.30502219]
[1740092808186,2.15123335,656.35,655.69,0.30502219]
[1740092809286,2.91627707,656.34,655.69,0.30502219]
[1740092809486,2.15123335,656.35,655.69,0.30502219]
[1740092809888,5.06730263,656.34,655.69,0.30502219]
[1740092810187,2.91606928,656.33,655.69,0.30502219]
[1740092810390,2.91606928,656.32,655.69,0.30502219]
[1740092810687,2.91606928,656.31,655.69,0.30502219]
[1740092810888,2.91606928,656.3,655.69,0.30502219]
[1740092811084,2.91606928,656.29,655.69,0.30502219]
[1740092811285,2.91606928,656.28,655.69,0.30502219]
[1740092811487,5.06730263,656.27,655.69,0.30502219]
[1740092811688,2.91606928,656.26,655.69,0.30502219]
[1740092811991,2.91606928,656.25,655.69,0.30502219]
[1740092812189,2.91606928,656.24,655.69,0.30502219]
[1740092812388,2.15123335,656.27,655.69,0.30502219]
[1740092812585,2.91513448,656.26,655.69,0.30502219]
[1740092812791,2.91513448,656.25,655.69,0.30502219]
[1740092812990,2.91513448,656.24,655.69,0.30502219]
[1740092813290,2.15123335,656.27,655.69,0.30502219]
[1740092813492,2.91438216,656.26,655.69,0.30502219]
[1740092813685,2.91438216,656.25,655.69,0.30502219]
[1740092813986,5.06398108,656.24,655.69,0.30502219]
[1740092814184,2.14959892,656.24,655.69,0.30502219]
[1740092815989,2.91363364,656.23,655.69,0.30502219]
[1740092816186,2.14959892,656.23,655.69,0.30502219]
[1740092817490,5.06396271,656.22,655.69,0.30502219]
[1740092817689,2.91436024,656.21,655.69,0.30502219]
[1740092817887,2.91436024,656.2,655.69,0.30502219]
[1740092818085,2.91436024,656.19,655.69,0.30502219]
[1740092818291,2.91436024,656.18,655.69,0.30502219]
[1740092818488,2.14959892,656.22,655.69,0.30502219]
[1740092818685,2.91518356,656.21,655.69,0.30502219]
[1740092818886,2.91518356,656.2,655.69,0.30502219]
[1740092819087,2.91518356,656.19,655.69,0.30502219]
[1740092819285,2.91518356,656.18,655.69,0.30502219]
[1740092819489,2.14959892,656.18,655.69,0.30502219]
[1740092819686,2.91595571,656.17,655.69,0.30502219]
[1740092819885,2.14959892,656.18,655.69,0.30502219]
[1740092820090,2.91596647,656.17,655.69,0.30502219]
[1740092820289,2.14959892,656.18,655.69,0.30502219]
[1740092821591,4.18,656.46,655.69,0.30502219]
[1740092821791,2.9163001,656.45,655.69,0.30502219]
[1740092821989,2.9163001,656.44,655.69,0.30502219]
[1740092822295,2.9163001,656.43,655.69,0.30502219]
[1740092822491,2.9163001,656.42,655.69,0.30502219]
[1740092822692,2.9163001,656.41,655.69,0.30502219]
[1740092822892,2.9163001,656.4,655.69,0.30502219]
[1740092823094,2.9163001,656.39,655.69,0.30502219]
[1740092823296,2.9163001,656.38,655.69,0.30502219]
[1740092823490,2.9163001,656.37,655.69,0.30502219]
[1740092823688,2.9163001,656.36,655.69,0.30502219]
[1740092823894,2.9163001,656.35,655.69,0.30502219]
[1740092824095,2.9163001,656.34,655.69,0.30502219]
[1740092824296,2.9163001,656.33,655.69,0.30502219]
[1740092824495,2.9163001,656.32,655.69,0.30502219]
[1740092824694,2.9163001,656.31,655.69,0.30502219]
[1740092824898,2.9163001,656.3,655.69,0.30502219]
[1740092825095,5.06726288,656.29,655.69,0.30502219]
[1740092825293,2.9163001,656.28,655.69,0.30502219]
[1740092825492,2.9163001,656.27,655.69,0.30502219]
[1740092825696,2.9163001,656.26,655.69,0.30502219]
[1740092825895,2.9163001,656.25,655.69,0.30502219]
[1740092826089,2.15096278,656.29,655.69,0.30502219]
[1740092826293,2.91621254,656.28,655.69,0.30502219]
[1740092826492,2.91621254,656.27,655.69,0.30502219]
[1740092826693,2.91621254,656.26,655.69,0.30502219]
[1740092826896,2.91621254,656.25,655.69,0.30502219]
[1740092827095,2.15096278,656.27,655.69,0.30502219]
[1740092827296,2.91601552,656.26,655.69,0.30502219]
[1740092827493,2.91601552,656.25,655.69,0.30502219]
[1740092827697,2.15096278,656.27,655.69,0.30502219]
[1740092827896,2.91581285,656.26,655.69,0.30502219]
[1740092828096,2.91581285,656.25,655.69,0.30502219]
[1740092828397,2.15096278,656.26,655.69,0.30502219]
[1740092828599,2.91566566,656.25,655.69,0.30502219]
[1740092828791,2.15096278,656.26,655.69,0.30502219]
[1740092828792,2.91569579,656.24,655.69,0.30502219]
[1740092828995,2.15096278,656.26,655.69,0.30502219]
[1740092829191,2.91569231,656.25,655.69,0.30502219]
[1740092829395,2.15096278,656.26,655.69,0.30502219]
[1740092829591,2.91562321,656.25,655.69,0.30502219]
[1740092829791,1.342,656.43,655.69,0.30502219]
[1740092830000,5.06608378,656.42,655.69,0.30502219]
[1740092830299,2.91559308,656.41,655.69,0.30502219]
[1740092830494,2.91559308,656.4,655.69,0.30502219]
[1740092830695,2.91559308,656.39,655.69,0.30502219]
[1740092830894,2.91559308,656.38,655.69,0.30502219]
[1740092831098,5.06608378,656.37,655.69,0.30502219]
[1740092831297,2.91559308,656.36,655.69,0.30502219]
[1740092831499,2.91559308,656.35,655.69,0.30502219]
[1740092831694,2.91559308,656.34,655.69,0.30502219]
[1740092831895,2.91559308,656.33,655.69,0.30502219]
[1740092832195,2.91559308,656.32,655.69,0.30502219]
[1740092832394,2.91559308,656.31,655.69,0.30502219]
[1740092832597,5.06608378,656.3,655.69,0.30502219]
[1740092832894,2.91559308,656.29,655.69,0.30502219]
[1740092833098,2.91559308,656.28,655.69,0.30502219]
[1740092833298,2.91559308,656.27,655.69,0.30502219]
[1740092833498,2.91559308,656.26,655.69,0.30502219]
[1740092833699,2.91559308,656.25,655.69,0.30502219]
[1740092833895,2.91559308,656.24,655.69,0.30502219]
[1740092834099,2.91559308,656.23,655.69,0.30502219]
[1740092834294,2.91559308,656.22,655.69,0.30502219]
[1740092834494,2.91559308,656.21,655.69,0.30502219]
[1740092834694,2.91559308,656.2,655.69,0.30502219]
[1740092834895,2.91559308,656.19,655.69,0.30502219]
[1740092835201,2.91559308,656.18,655.69,0.30502219]
[1740092835401,2.91559308,656.17,655.69,0.30502219]